fUSD/lending_fUSD_20250513
["ID","MTS","AMOUNT","RATE_DAILY","PERIOD"]
[360978540,1747177850134,-152.08680848,0.00011235,2]
[360978542,1747177850144,-1343.92,0.00011235,2]
[360978544,1747177850153,-1044.49,0.00011235,2]
[360978546,1747177850163,-447.07,0.00011235,2]
[360978548,1747177850173,-528.1,0.00011235,2]
[360978550,1747177850184,-1703.22,0.00011235,2]
[360978552,1747177850193,-475.16,0.00011235,2]
[360978554,1747177850203,-400.0,0.00011235,2]
[360978556,1747177850213,-409.93,0.00011235,2]
[360978558,1747177850223,-400.0,0.00011235,2]
[360978560,1747177850232,-400.0,0.00011235,2]
[360978562,1747177850242,-400.0,0.00011235,2]
[360978564,1747177850252,-1033.79,0.00011235,2]
[360978566,1747177850261,-843.31,0.00011235,2]
[360978568,1747177850271,-400.0,0.00011235,2]
[360978570,1747177850280,-400.0,0.00011235,2]
[360978572,1747177850290,-862.59,0.00011235,2]
[360978574,1747177850299,-680.59,0.00011235,2]
[360978576,1747177850308,-1888.2,0.00011235,2]
[360978578,1747177850317,-400.0,0.00011235,2]
[360978580,1747177850327,-400.0,0.00011235,2]
[360978582,1747177850337,-400.0,0.00011235,2]
[360978584,1747177850346,-400.0,0.00011235,2]
[360978586,1747177850355,-400.0,0.00011235,2]
[360978588,1747177850365,-520.14,0.00011235,2]
[360978590,1747177850374,-1351.81,0.00011235,2]
[360978592,1747177850384,-400.0,0.00011235,2]
[360978594,1747177850394,-728.97,0.00011235,2]
[360978596,1747177850403,-453.91,0.00011235,2]
[360978598,1747177850413,-472.2,0.00011235,2]
[360978616,1747177850588,-1290.49,0.00011235,2]
[360978618,1747177850598,-909.84,0.00011235,2]
[360978620,1747177850607,-434.13,0.00011235,2]
[360978622,1747177850616,-581.28,0.00011235,2]
[360978624,1747177850626,-400.0,0.00011235,2]
[360978626,1747177850635,-400.0,0.00011235,2]
[360978628,1747177850646,-400.0,0.00011235,2]
[360978630,1747177850656,-726.82,0.00011235,2]
[360978632,1747177850666,-400.0,0.00011235,2]
[360978634,1747177850675,-400.0,0.00011235,2]
[360978636,1747177850685,-598.05,0.00011235,2]
[360978638,1747177850694,-400.0,0.00011235,2]
[360978640,1747177850705,-1784.56,0.00011235,2]
[360978642,1747177850714,-1413.07,0.00011235,2]
[360978644,1747177850724,-1000.0,0.00011235,2]
[360978646,1747177850733,-400.0,0.00011235,2]
[360978648,1747177850743,-468.06,0.00011235,2]
[360978650,1747177850752,-839.62,0.00011235,2]
[360978652,1747177850762,-400.0,0.00011235,2]
[360978654,1747177850772,-464.66,0.00011235,2]
[360978656,1747177850782,-1216.66,0.00011235,2]
[360978658,1747177850792,-717.88,0.00011235,2]
[360978660,1747177850801,-1922.61,0.00011235,2]
[360978662,1747177850810,-481.58,0.00011235,2]
[360978664,1747177850819,-400.0,0.00011235,2]
[360978666,1747177850829,-400.0,0.00011235,2]
[360978668,1747177850838,-400.0,0.00011235,2]
[360978670,1747177850847,-592.76,0.00011235,2]
[360978672,1747177850857,-475.54,0.00011235,2]
[360978674,1747177850867,-400.0,0.00011235,2]
[360978676,1747177850877,-455.8,0.00011235,2]
[360978678,1747177850887,-659.72,0.00011235,2]
[360978680,1747177850896,-1578.02,0.00011235,2]
[360978681,1747177850906,-766.0,0.00011235,2]
[360978683,1747177850915,-400.0,0.00011235,2]
[360978685,1747177850924,-403.35,0.00011235,2]
[360978687,1747177850933,-1170.41,0.00011235,2]
[360978689,1747177850942,-1268.95,0.00011235,2]
[360978691,1747177850952,-576.22,0.00011235,2]
[360978693,1747177850961,-2492.76,0.00011235,2]
[360978694,1747177850970,-870.54,0.00011235,2]
[360978695,1747177850979,-400.0,0.00011235,2]
[360978696,1747177850988,-400.0,0.00011235,2]
[360978697,1747177850997,-400.0,0.00011235,2]
[360978698,1747177851006,-178.76685919,0.00011235,2]
[360978699,1747177851015,-4296.52,0.00011235,2]
[360978700,1747177851025,-381.44,0.00011235,2]
[360978701,1747177851035,-490.13,0.00011235,2]
[360978703,1747177851044,-2946.22,0.00011235,2]
[360978705,1747177851053,-400.0,0.00011235,2]
[360978707,1747177851062,-400.0,0.00011235,2]
[360978709,1747177851071,-400.0,0.00011235,2]
[360978711,1747177851081,-400.0,0.00011235,2]
[360978713,1747177851091,-400.0,0.00011235,2]
[360978715,1747177851100,-616.39,0.00011235,2]
[360978717,1747177851109,-13023.39,0.00011235,2]
[360978719,1747177851118,-400.0,0.00011235,2]
[360978721,1747177851128,-400.0,0.00011235,2]
[360978723,1747177851138,-400.0,0.00011235,2]
[360978725,1747177851147,-6247.21,0.00011235,2]
[360978727,1747177851157,-1212.46766938,0.00011235,2]
[360978976,1747177853546,-402.59,0.0001096,2]
[360978978,1747177853556,-400.0,0.00010961,2]
[360978980,1747177853565,-151.0,0.00011233,2]
[360978982,1747177853575,-402.59,0.00011234,2]
[360978984,1747177853584,-4523.49233062,0.00011235,2]
[360978986,1747177853594,-400.0,0.00011235,2]
[360978988,1747177853603,-789.66,0.00011235,2]
[360978990,1747177853613,-450.46,0.00011235,2]
[360978992,1747177853623,-400.0,0.00011235,2]
[360978994,1747177853632,-2480.20766937,0.00011235,2]
[360978996,1747177853643,-5211.903,0.00011235,2]
[360978999,1747177853661,-103.86933063,0.00011235,2]
[360979001,1747177853671,-400.0,0.00011235,2]
[360979003,1747177853680,-172.99726901,0.00011235,2]
[360979008,1747177853714,-268.33273099,0.00011235,2]
[360979010,1747177853723,-480.76,0.00011235,2]
[360979012,1747177853733,-1937.30726901,0.00011235,2]
[360980553,1747177894920,200.0,0.0002,30]
[360980554,1747177943463,470.68,9.903e-05,2]
[360980555,1747177959568,-150.0,9.934e-05,2]
[360980556,1747177959603,-171.80959781,9.934e-05,2]
[360980557,1747177959638,-135.48639126,9.934e-05,2]
[360980558,1747178157544,1298.13,8.219e-05,2]
[360980559,1747178510386,-300.0,9.929e-05,2]
[360980560,1747178510409,-418.0,9.93e-05,2]
[360980561,1747178510431,-300.0,9.93e-05,2]
[360980562,1747178510465,-500.0,9.93e-05,2]
[360980563,1747178510498,-500.0,9.93e-05,2]
[360980564,1747178510531,-500.0,9.93e-05,2]
[360980565,1747178510563,-500.0,9.93e-05,2]
[360980566,1747178510594,-500.0,9.93e-05,2]
[360980567,1747178510627,-500.0,9.93e-05,2]
[360980568,1747178510659,-500.0,9.93e-05,2]
[360980569,1747178510691,-500.0,9.93e-05,2]
[360980570,1747178510723,-500.0,9.93e-05,2]
[360980571,1747178510756,-500.0,9.93e-05,2]
[360980572,1747178510787,-500.0,9.93e-05,2]
[360980573,1747178510817,-500.0,9.93e-05,2]
[360980574,1747178510847,-500.0,9.93e-05,2]
[360980575,1747178510877,-500.0,9.93e-05,2]
[360980576,1747178510906,-500.0,9.93e-05,2]
[360980577,1747178510935,-500.0,9.93e-05,2]
[360980578,1747178510965,-500.0,9.93e-05,2]
[360980579,1747178510995,-500.0,9.93e-05,2]
[360980580,1747178511025,-500.0,9.93e-05,2]
[360980581,1747178511060,-440.56244985,9.93e-05,2]
[360980582,1747178511094,-500.0,9.93e-05,2]
[360980583,1747178511129,-500.0,9.93e-05,2]
[360980584,1747178511167,-650.3756032,9.93e-05,2]
[360980585,1747178511202,-650.3756032,9.93e-05,2]
[360980586,1747178511237,-650.3756032,9.93e-05,2]
[360980587,1747178511272,-650.3756032,9.93e-05,2]
[360980588,1747178511305,-650.3756032,9.93e-05,2]
[360980589,1747178511340,-650.3756032,9.93e-05,2]
[360980590,1747178511372,-650.3756032,9.93e-05,2]
[360980591,1747178511404,-650.3756032,9.93e-05,2]
[360980592,1747178511439,-650.3756032,9.93e-05,2]
[360980593,1747178511474,-650.3756032,9.93e-05,2]
[360980594,1747178511506,-650.3756032,9.93e-05,2]
[360980595,1747178511537,-650.3756032,9.93e-05,2]
[360980596,1747178511570,-650.3756032,9.93e-05,2]
[360980597,1747178511601,-650.3756032,9.93e-05,2]
[360980598,1747178511637,-650.3756032,9.93e-05,2]
[360980599,1747178511674,-650.3756032,9.93e-05,2]
[360980600,1747178511710,-650.3756032,9.93e-05,2]
[360980601,1747178511740,-650.3756032,9.93e-05,2]
[360980602,1747178511771,-650.3756032,9.93e-05,2]
[360980603,1747178511802,-650.3756032,9.93e-05,2]
[360980604,1747178511832,-650.3756032,9.93e-05,2]
[360980605,1747178511864,-650.3756032,9.93e-05,2]
[360980606,1747178511894,-650.3756032,9.93e-05,2]
[360980607,1747178511925,-650.3756032,9.93e-05,2]
[360980608,1747178511957,-650.3756032,9.93e-05,2]
[360980609,1747178511990,-650.3756032,9.93e-05,2]
[360980610,1747178512021,-650.3756032,9.93e-05,2]
[360980611,1747178512055,-650.3756032,9.93e-05,2]
[360980612,1747178512086,-650.3756032,9.93e-05,2]
[360980613,1747178512310,-650.3756032,9.93e-05,2]
[360980614,1747178512346,-650.3756032,9.93e-05,2]
[360980615,1747178512381,-650.3756032,9.93e-05,2]
[360980616,1747178512415,-639.4449208,9.93e-05,2]
[360980617,1747178512448,-639.4449208,9.93e-05,2]
[360980618,1747178512480,-639.4449208,9.93e-05,2]
[360980619,1747178512511,-639.4449208,9.93e-05,2]
[360980620,1747178512541,-639.4449208,9.93e-05,2]
[360980621,1747178512575,-639.4449208,9.93e-05,2]
[360980622,1747178512611,-639.4449208,9.93e-05,2]
[360980623,1747178512645,-639.4449208,9.93e-05,2]
[360980624,1747178512679,-639.4449208,9.93e-05,2]
[360980625,1747178512714,-639.4449208,9.93e-05,2]
[360980626,1747178512745,-639.4449208,9.93e-05,2]
[360980627,1747178512777,-639.4449208,9.93e-05,2]
[360980628,1747178512810,-639.4449208,9.93e-05,2]
[360980629,1747178512847,-639.4449208,9.93e-05,2]
[360980630,1747178512881,-639.4449208,9.93e-05,2]
[360980631,1747178512914,-639.4449208,9.93e-05,2]
[360980632,1747178512950,-639.4449208,9.93e-05,2]
[360980633,1747178512989,-308.85459415,9.93e-05,2]
[360980634,1747178713239,7336.18375222,9.806e-05,2]
[360980635,1747178713262,10000.0,9.806e-05,2]
[360980636,1747178713284,6563.81624778,9.806e-05,2]
[360980637,1747178723426,250.0,9.804e-05,2]
[360980638,1747178736463,3186.18375222,9e-05,2]
[360980639,1747178736485,10000.0,9e-05,2]
[360980640,1747178736508,10000.0,9e-05,2]
[360980641,1747178736531,510.18430514,9e-05,2]
[360980642,1747178766372,785.39436636,8e-05,2]
[360980643,1747178788755,-500.0,9.929e-05,2]
[360980644,1747178788779,-1200.0,9.929e-05,2]
[360980645,1747178788802,-300.0,9.929e-05,2]
[360980646,1747178788824,-342.02339911,9.929e-05,2]
[360980647,1747178788847,-200.0,9.929e-05,2]
[360980648,1747178788868,-200.0,9.929e-05,2]
[360980649,1747178788890,-200.0,9.93e-05,2]
[360980650,1747178788912,-268.52,9.93e-05,2]
[360980651,1747178788943,-330.59032665,9.93e-05,2]
[360980652,1747178788975,-639.4449208,9.93e-05,2]
[360980653,1747178789006,-639.4449208,9.93e-05,2]
[360980654,1747178789035,-639.4449208,9.93e-05,2]
[360980655,1747178789066,-639.4449208,9.93e-05,2]
[360980656,1747178789096,-639.4449208,9.93e-05,2]
[360980657,1747178789127,-648.32610026,9.93e-05,2]
[360980658,1747178789158,-648.32610026,9.93e-05,2]
[360980659,1747178789187,-648.32610026,9.93e-05,2]
[360980660,1747178789216,-648.32610026,9.93e-05,2]
[360980661,1747178789245,-648.32610026,9.93e-05,2]
[360980662,1747178789276,-648.32610026,9.93e-05,2]
[360980663,1747178789314,-648.32610026,9.93e-05,2]
[360980664,1747178789344,-648.32610026,9.93e-05,2]
[360980665,1747178789375,-648.32610026,9.93e-05,2]
[360980666,1747178789406,-648.32610026,9.93e-05,2]
[360980667,1747178789439,-648.32610026,9.93e-05,2]
[360980668,1747178789475,-648.32610026,9.93e-05,2]
[360980669,1747178789508,-481.72846712,9.93e-05,2]
[360980672,1747178827235,-395.52393565,9.912e-05,2]
[360980673,1747178831947,-215.95880197,9.912e-05,2]
[360980674,1747178834143,-172.04,9.912e-05,2]
[360980675,1747178835609,-166.59042292,9.912e-05,2]
[360980676,1747178838336,-37.46683946,9.912e-05,2]
[360980730,1747178875830,150.0,9.866e-05,7]
[360980744,1747178958964,1783.54,9.752e-05,2]
[360980745,1747178971883,6920.8813285,9.784e-05,2]
[360980746,1747178971906,3797.1786715,9.784e-05,2]
[360980761,1747179031702,-161.3413666,9.92e-05,2]
[360980762,1747179031711,-256.18883982,9.926e-05,2]
[360980763,1747179031787,-43.81116018,9.926e-05,2]
[360980764,1747179031797,-1200.0,9.927e-05,2]
[360980765,1747179031806,-300.0,9.927e-05,2]
[360980766,1747179031815,-150.0,9.927e-05,2]
[360980767,1747179031825,-150.0,9.927e-05,2]
[360980768,1747179031835,-179.13612983,9.927e-05,2]
[360980769,1747179031845,-500.0,9.927e-05,2]
[360980770,1747179031855,-500.0,9.927e-05,2]
[360980771,1747179031864,-500.0,9.927e-05,2]
[360980772,1747179031873,-500.0,9.927e-05,2]
[360980773,1747179031883,-500.0,9.927e-05,2]
[360980774,1747179031892,-500.0,9.927e-05,2]
[360980775,1747179031902,-500.0,9.927e-05,2]
[360980776,1747179031911,-500.0,9.927e-05,2]
[360980777,1747179031920,-500.0,9.927e-05,2]
[360980778,1747179031930,-500.0,9.927e-05,2]
[360980779,1747179031938,-500.0,9.927e-05,2]
[360980780,1747179031948,-500.0,9.927e-05,2]
[360980781,1747179031957,-500.0,9.927e-05,2]
[360980782,1747179031967,-500.0,9.927e-05,2]
[360980783,1747179031977,-500.0,9.927e-05,2]
[360980784,1747179031986,-500.0,9.927e-05,2]
[360980785,1747179031999,-500.0,9.927e-05,2]
[360980786,1747179032009,-500.0,9.927e-05,2]
[360980787,1747179032019,-351.18519006,9.927e-05,2]
[360980788,1747179032028,-250.0,9.928e-05,2]
[360980789,1747179032037,-500.0,9.928e-05,2]
[360980790,1747179032048,-500.0,9.928e-05,2]
[360980792,1747179032057,-500.0,9.928e-05,2]
[360980793,1747179032067,-500.0,9.928e-05,2]
[360980794,1747179032077,-500.0,9.928e-05,2]
[360980795,1747179032086,-500.0,9.928e-05,2]
[360980797,1747179032096,-500.0,9.928e-05,2]
[360980798,1747179032105,-500.0,9.928e-05,2]
[360980799,1747179032115,-39.56390993,9.928e-05,2]
[360980800,1747179032129,-460.43609007,9.928e-05,2]
[360980801,1747179032138,-500.0,9.928e-05,2]
[360980802,1747179032148,-500.0,9.928e-05,2]
[360980803,1747179032161,-500.0,9.928e-05,2]
[360980804,1747179032171,-500.0,9.928e-05,2]
[360980805,1747179032180,-317.89575881,9.928e-05,2]
[360980806,1747179032191,-500.0,9.928e-05,2]
[360980807,1747179032200,-500.0,9.928e-05,2]
[360980808,1747179032210,-500.0,9.928e-05,2]
[360980809,1747179032219,-500.0,9.928e-05,2]
[360980810,1747179032229,-500.0,9.928e-05,2]
[360980811,1747179032238,-500.0,9.928e-05,2]
[360980812,1747179032250,-500.0,9.928e-05,2]
[360980813,1747179032260,-500.0,9.928e-05,2]
[360980814,1747179032269,-500.0,9.928e-05,2]
[360980815,1747179032279,-500.0,9.928e-05,2]
[360980816,1747179032289,-500.0,9.928e-05,2]
[360980817,1747179032298,-500.0,9.928e-05,2]
[360980818,1747179032308,-500.0,9.928e-05,2]
[360980819,1747179032318,-500.0,9.928e-05,2]
[360980820,1747179032327,-500.0,9.928e-05,2]
[360980821,1747179032337,-500.0,9.928e-05,2]
[360980822,1747179032347,-500.0,9.928e-05,2]
[360980823,1747179032357,-500.0,9.928e-05,2]
[360980824,1747179032367,-500.0,9.928e-05,2]
[360980825,1747179032377,-500.0,9.928e-05,2]
[360980826,1747179032389,-500.0,9.928e-05,2]
[360980827,1747179032400,-500.0,9.928e-05,2]
[360980828,1747179032411,-500.0,9.928e-05,2]
[360980829,1747179032420,-500.0,9.928e-05,2]
[360980830,1747179032430,-500.0,9.928e-05,2]
[360980831,1747179032440,-500.0,9.928e-05,2]
[360980832,1747179032649,-500.0,9.928e-05,2]
[360980833,1747179032658,-500.0,9.928e-05,2]
[360980834,1747179032669,-500.0,9.928e-05,2]
[360980835,1747179032678,-500.0,9.928e-05,2]
[360980836,1747179032689,-500.0,9.928e-05,2]
[360980837,1747179032698,-200.0,9.929e-05,2]
[360980838,1747179032707,-49590.35654635,9.943e-05,2]
[360980843,1747179037485,-168.74830553,9.927e-05,2]
[360980845,1747179037494,-200.21849056,9.927e-05,2]
[360980847,1747179037507,-19208.96193875,9.943e-05,2]
[360980964,1747179040169,-285.78130722,9.943e-05,2]
[360980966,1747179040180,-7119.0977086,9.943e-05,2]
[360980967,1747179040191,-368.31099941,9.943e-05,2]
[360980969,1747179040202,-367.51729262,9.943e-05,2]
[360980972,1747179040221,-22012.19748137,9.943e-05,2]
[360980975,1747179040247,-113382.77926318,9.943e-05,2]
[360980977,1747179040256,-7357.2420954,9.943e-05,2]
[360980979,1747179040265,-1000.0,9.95e-05,2]
[360980980,1747179040275,-200.0,9.958e-05,2]
[360980982,1747179040284,-322.49,9.982e-05,2]
[360980984,1747179040293,-200.51923094,0.0001,2]
[360980986,1747179040303,-246.42,0.00010089,2]
[360980988,1747179040312,-164.86,0.00010231,2]
[360980990,1747179040321,-579.55710172,0.00010338,2]
[360980991,1747179040330,-207.4,0.00010429,2]
[360980993,1747179040340,-1298.13,0.00010475,2]
[360980995,1747179040349,-151.0,0.00010852,2]
[360980997,1747179040358,-287.61899177,0.00010852,2]
[360980999,1747179040368,-8761.1297,0.00010859,2]
[360981001,1747179040377,-5663.7285,0.00010859,2]
[360981003,1747179040387,-597.7043,0.00010859,2]
[360981005,1747179040395,-362.5,0.00010859,2]
[360981007,1747179040405,-1249.255,0.0001086,2]
[360981008,1747179040414,-8548.7243,0.0001086,2]
[360981010,1747179040423,-381.4998,0.0001086,2]
[360981012,1747179040432,-514.30225405,0.0001086,2]
[360981014,1747179040441,-818.01165508,0.00010861,2]
[360981016,1747179040450,-2653.2731,0.00010861,2]
[360981018,1747179040459,-164.3858947,0.000109,2]
[360981019,1747179040468,-157.9560626,0.000109,2]
[360981021,1747179040477,-153.99373972,0.000109,2]
[360981023,1747179040487,-3353.22367204,0.000109,2]
[360981025,1747179040496,-200.0,0.0001092,2]
[360981026,1747179040507,-250.0,0.0001092,2]
[360981027,1747179040522,-420.0,0.0001092,2]
[360981028,1747179040541,-250.0,0.00010921,2]
[360981029,1747179040553,-200.0,0.00010921,2]
[360981030,1747179040562,-200.0,0.00010922,2]
[360981031,1747179040571,-150.0,0.00010959,2]
[360981032,1747179040582,-304.984101,0.00010959,2]
[360981033,1747179040591,-1598.020913,0.00010959,2]
[360981034,1747179040600,-159.144314,0.00010959,2]
[360981035,1747179040610,-400.0,0.00010959,2]
[360981036,1747179040619,-431.73,0.00010959,2]
[360981037,1747179040628,-400.0,0.00010959,2]
[360981038,1747179040637,-400.0,0.00010959,2]
[360981039,1747179040646,-400.0,0.00010959,2]
[360981040,1747179040656,-198.9,0.00010959,2]
[360981041,1747179040665,-400.0,0.00010959,2]
[360981042,1747179040675,-696.2,0.00010959,2]
[360981043,1747179040684,-400.0,0.00010959,2]
[360981044,1747179040693,-400.0,0.00010959,2]
[360981045,1747179040703,-400.0,0.00010959,2]
[360981046,1747179040712,-323.84655926,0.00010959,2]
[360981047,1747179040721,-400.0,0.00010959,2]
[360981048,1747179040730,-431.75,0.00010959,2]
[360981049,1747179040739,-400.0,0.00010959,2]
[360981050,1747179040748,-418.26,0.00010959,2]
[360981051,1747179040758,-990.26,0.00010959,2]
[360981052,1747179040767,-463.81168982,0.00010959,2]
[360981053,1747179040777,-400.0,0.00010959,2]
[360981054,1747179040786,-1000.97,0.00010959,2]
[360981055,1747179040794,-400.0,0.00010959,2]
[360981056,1747179040804,-464.12,0.00010959,2]
[360981057,1747179040813,-400.0,0.00010959,2]
[360981058,1747179040822,-400.0,0.00010959,2]
[360981059,1747179040831,-400.0,0.00010959,2]
[360981060,1747179040840,-400.0,0.00010959,2]
[360981061,1747179040849,-636.09,0.00010959,2]
[360981062,1747179040858,-455.37,0.00010959,2]
[360981063,1747179040867,-400.0,0.00010959,2]
[360981064,1747179040877,-400.0,0.00010959,2]
[360981065,1747179040886,-417.11,0.00010959,2]
[360981066,1747179040895,-400.0,0.00010959,2]
[360981067,1747179040904,-658.88,0.00010959,2]
[360981068,1747179040913,-412.34,0.00010959,2]
[360981069,1747179040922,-808.17,0.00010959,2]
[360981070,1747179040932,-524.12,0.00010959,2]
[360981071,1747179040943,-1468.37,0.00010959,2]
[360981072,1747179040953,-400.0,0.00010959,2]
[360981073,1747179040962,-498.8,0.00010959,2]
[360981074,1747179040972,-400.0,0.00010959,2]
[360981075,1747179040982,-400.0,0.00010959,2]
[360981076,1747179040991,-969.45,0.00010959,2]
[360981077,1747179041001,-749.43,0.00010959,2]
[360981078,1747179041012,-400.0,0.00010959,2]
[360981079,1747179041021,-652.23,0.00010959,2]
[360981080,1747179041030,-400.0,0.00010959,2]
[360981081,1747179041039,-530.87,0.00010959,2]
[360981082,1747179041049,-400.0,0.00010959,2]
[360981083,1747179041059,-1809.52,0.00010959,2]
[360981084,1747179041069,-1572.6,0.00010959,2]
[360981085,1747179041078,-856.0,0.00010959,2]
[360981086,1747179041088,-627.51,0.00010959,2]
[360981087,1747179041098,-400.0,0.00010959,2]
[360981088,1747179041108,-888.48,0.00010959,2]
[360981089,1747179041117,-400.0,0.00010959,2]
[360981090,1747179041127,-866.2,0.00010959,2]
[360981091,1747179041136,-671.83,0.00010959,2]
[360981092,1747179041146,-400.0,0.00010959,2]
[360981093,1747179041158,-400.0,0.00010959,2]
[360981094,1747179041169,-400.0,0.00010959,2]
[360981095,1747179041178,-400.0,0.00010959,2]
[360981096,1747179041188,-980.14,0.00010959,2]
[360981097,1747179041199,-400.0,0.00010959,2]
[360981098,1747179041208,-484.53,0.00010959,2]
[360981099,1747179041217,-540.35,0.00010959,2]
[360981100,1747179041228,-1050.54,0.00010959,2]
[360981101,1747179041238,-1354.26,0.00010959,2]
[360981102,1747179041248,-1327.09,0.00010959,2]
[360981103,1747179041259,-1300.46,0.00010959,2]
[360981104,1747179041269,-400.0,0.00010959,2]
[360981105,1747179041279,-400.0,0.00010959,2]
[360981106,1747179041289,-467.84,0.00010959,2]
[360981107,1747179041298,-556.4,0.00010959,2]
[360981108,1747179041308,-400.0,0.00010959,2]
[360981109,1747179041318,-1093.59,0.00010959,2]
[360981110,1747179041327,-633.48,0.00010959,2]
[360981111,1747179041336,-400.0,0.00010959,2]
[360981112,1747179041346,-938.3,0.00010959,2]
[360981113,1747179041356,-698.6,0.00010959,2]
[360981114,1747179041366,-400.0,0.00010959,2]
[360981115,1747179041375,-412.77,0.00010959,2]
[360981116,1747179041385,-416.87,0.00010959,2]
[360981117,1747179041395,-400.0,0.00010959,2]
[360981118,1747179041404,-503.99,0.00010959,2]
[360981119,1747179041413,-1062.98,0.00010959,2]
[360981120,1747179041423,-400.0,0.00010959,2]
[360981121,1747179041432,-452.53,0.00010959,2]
[360981122,1747179041442,-410.3,0.00010959,2]
[360981123,1747179041451,-400.0,0.00010959,2]
[360981124,1747179041461,-899.25,0.00010959,2]
[360981125,1747179041470,-400.0,0.00010959,2]
[360981126,1747179041480,-1494.82,0.00010959,2]
[360981127,1747179041490,-871.93,0.00010959,2]
[360981128,1747179041499,-905.37,0.00010959,2]
[360981129,1747179041510,-762.05,0.00010959,2]
[360981130,1747179041519,-400.0,0.00010959,2]
[360981131,1747179041529,-416.05,0.00010959,2]
[360981132,1747179041539,-400.0,0.00010959,2]
[360981133,1747179041548,-400.0,0.00010959,2]
[360981134,1747179041558,-400.0,0.00010959,2]
[360981135,1747179041567,-400.0,0.00010959,2]
[360981136,1747179041577,-1105.16,0.00010959,2]
[360981137,1747179041586,-1665.27,0.00010959,2]
[360981138,1747179041595,-696.54,0.00010959,2]
[360981139,1747179041604,-400.0,0.00010959,2]
[360981140,1747179041800,-406.42,0.00010959,2]
[360981141,1747179041811,-1447.33,0.00010959,2]
[360981142,1747179041821,-1710.2,0.00010959,2]
[360981143,1747179041830,-432.94,0.00010959,2]
[360981144,1747179041840,-1045.41,0.00010959,2]
[360981145,1747179041850,-400.0,0.00010959,2]
[360981146,1747179041859,-598.93,0.00010959,2]
[360981147,1747179041869,-1587.79,0.00010959,2]
[360981148,1747179041878,-1842.5,0.00010959,2]
[360981149,1747179041888,-491.74,0.00010959,2]
[360981150,1747179041897,-1000.0,0.00010959,2]
[360981151,1747179041906,-403.36,0.00010959,2]
[360981152,1747179041916,-1449.76,0.00010959,2]
[360981153,1747179041925,-400.0,0.00010959,2]
[360981154,1747179041935,-536.61,0.00010959,2]
[360981155,1747179041944,-400.0,0.00010959,2]
[360981156,1747179041953,-3723.52,0.00010959,2]
[360981157,1747179041962,-445.3,0.00010959,2]
[360981158,1747179041972,-400.0,0.00010959,2]
[360981159,1747179041981,-1302.93,0.00010959,2]
[360981160,1747179041990,-400.0,0.00010959,2]
[360981161,1747179041999,-400.0,0.00010959,2]
[360981162,1747179042011,-400.0,0.00010959,2]
[360981163,1747179042021,-851.77,0.00010959,2]
[360981164,1747179042030,-400.0,0.00010959,2]
[360981165,1747179042040,-465.37,0.00010959,2]
[360981166,1747179042050,-674.27,0.00010959,2]
[360981167,1747179042059,-400.0,0.00010959,2]
[360981168,1747179042069,-1728.02,0.00010959,2]
[360981169,1747179042078,-400.0,0.00010959,2]
[360981170,1747179042088,-1768.6,0.00010959,2]
[360981171,1747179042097,-406.96,0.00010959,2]
[360981172,1747179042107,-400.0,0.00010959,2]
[360981173,1747179042116,-400.0,0.00010959,2]
[360981174,1747179042125,-400.0,0.00010959,2]
[360981175,1747179042134,-472.61,0.00010959,2]
[360981176,1747179042144,-400.0,0.00010959,2]
[360981177,1747179042155,-908.29,0.00010959,2]
[360981178,1747179042165,-1115.49,0.00010959,2]
[360981179,1747179042174,-454.39,0.00010959,2]